fUST/lending_fUST_20250811
["ID","MTS","AMOUNT","RATE_DAILY","PERIOD"]
[378437148,1754856641743,-783.36,0.00023105,2]
[378437150,1754856641752,-519.34,0.0002316,2]
[378437152,1754856641761,-150.242,0.00023162,2]
[378437154,1754856641770,-150.0,0.00023162,2]
[378437156,1754856641780,-220.329,0.00023162,2]
[378437158,1754856641789,-250.0,0.00023162,2]
[378437160,1754856641798,-260.992,0.00023162,2]
[378437162,1754856641808,-245.0,0.00023162,2]
[378437164,1754856641817,-219.726,0.00023162,2]
[378437166,1754856641826,-160.0,0.00023167,2]
[378437168,1754856641835,-1416.23,0.0002318,2]
[378437170,1754856641845,-200.0,0.0002322,15]
[378437172,1754856641854,-200.0,0.0002322,15]
[378437174,1754856641863,-300.0,0.0002322,15]
[378437176,1754856641873,-151.15347236,0.00023233,2]
[378437178,1754856641883,-151.0,0.00023263,2]
[378437180,1754856641892,-198.0,0.00023263,2]
[378437182,1754856641901,-2017.08396434,0.00023315,2]
[378437184,1754856641911,-1430.0,0.0002336,2]
[378437186,1754856641920,-783.36,0.00023379,2]
[378437188,1754856641930,-3654.53223725,0.00023409,2]
[378437190,1754856641939,-483.0,0.00023414,2]
[378437192,1754856641949,-1430.0,0.00023433,2]
[378437194,1754856641959,-519.34,0.00023434,2]
[378437196,1754856641968,-2017.08396434,0.00023436,2]
[378437198,1754856641978,-205.416,0.00023441,3]
[378437200,1754856641989,-5888.0,0.00023459,2]
[378437202,1754856641998,-198.0,0.00023537,2]
[378437204,1754856642008,-2017.08396434,0.00023558,2]
[378437206,1754856642018,-986.0,0.00023562,3]
[378437208,1754856642028,-151.0,0.000236,9]
[378437210,1754856642037,-225.09563923,0.00023621,2]
[378437212,1754856642047,-179.40413927,0.00023621,2]
[378437214,1754856642057,-716.89894054,0.00023621,2]
[378437216,1754856642067,-783.36,0.00023653,2]
[378437218,1754856642076,-151.0,0.000237,5]
[378437220,1754856642086,-519.34,0.00023708,2]
[378437222,1754856642096,-260.0,0.00023715,2]
[378437224,1754856642106,-1430.0,0.00023752,2]
[378437226,1754856642115,-1897.64216209,0.00023798,2]
[378437228,1754856642125,-152.89904,0.000238,7]
[378437230,1754856642134,-151.0,0.000238,7]
[378437232,1754856642144,-151.0,0.000238,7]
[378437234,1754856642153,-151.0,0.000238,7]
[378437236,1754856642163,-295.47814268,0.000238,7]
[378437238,1754856642174,-151.0,0.000238,7]
[378437240,1754856642183,-151.0,0.000238,7]
[378437242,1754856642193,-151.0,0.000238,7]
[378437244,1754856642202,-151.0,0.000238,7]
[378437246,1754856642211,-1000.0,0.000238,2]
[378437248,1754856642220,-369.570991,0.000238,2]
[378437250,1754856642230,-151.0,0.000238,5]
[378437252,1754856642243,-172.00826619,0.000238,2]
[378437254,1754856642252,-7752.79807112,0.000238,2]
[378437256,1754856642262,-151.0,0.000238,8]
[378437258,1754856642271,-1430.0,0.00023803,2]
[378437260,1754856642281,-5062.0,0.00023848,2]
[378437262,1754856642290,-500.0,0.00023873,2]
[378437264,1754856642300,-150.0,0.00023873,2]
[378437267,1754856642314,-258.4,0.00023873,2]
[378437269,1754856642327,-500.0,0.00023873,2]
[378437272,1754856642341,-500.0,0.00023873,2]
[378437274,1754856642354,-510.14989155,0.00023873,2]
[378437276,1754856642366,-500.0,0.00023873,2]
[378437278,1754856642377,-500.0,0.00023873,2]
[378437281,1754856642388,-500.0,0.00023873,2]
[378437283,1754856642401,-457.95787263,0.00023873,2]
[378437285,1754856642412,-500.0,0.00023873,2]
[378437287,1754856642424,-500.0,0.00023873,2]
[378437290,1754856642436,-504.28008434,0.00023873,2]
[378437292,1754856642449,-500.0,0.00023873,2]
[378437294,1754856642461,-500.0,0.00023873,2]
[378437296,1754856642473,-587.0,0.0002388,2]
[378437299,1754856642486,-200.51240394,0.00023899,2]
[378437301,1754856642498,-500.0,0.00023899,2]
[378437303,1754856642511,-500.0,0.00023899,2]
[378437306,1754856642524,-500.0,0.00023899,2]
[378437308,1754856642535,-500.0,0.00023899,2]
[378437310,1754856642546,-500.0,0.00023899,2]
[378437312,1754856642559,-500.0,0.00023899,2]
[378437315,1754856642572,-500.0,0.00023899,2]
[378437317,1754856642586,-500.0,0.00023899,2]
[378437319,1754856642600,-500.0,0.00023899,2]
[378437321,1754856642613,-500.0,0.00023899,2]
[378437323,1754856642624,-500.0,0.00023899,2]
[378437326,1754856642636,-500.0,0.00023899,2]
[378437328,1754856642647,-500.0,0.00023899,2]
[378437330,1754856642657,-500.0,0.00023899,2]
[378437332,1754856642667,-500.0,0.00023899,2]
[378437334,1754856642679,-500.0,0.00023899,2]
[378437336,1754856642690,-500.0,0.00023899,2]
[378437338,1754856642701,-500.0,0.00023899,2]
[378437341,1754856642713,-500.0,0.00023899,2]
[378437343,1754856642725,-500.0,0.00023899,2]
[378437345,1754856642739,-220.53894126,0.00023899,2]
[378437347,1754856642750,-500.0,0.00023899,2]
[378437350,1754856642763,-500.0,0.00023899,2]
[378437352,1754856642775,-500.0,0.00023899,2]
[378437354,1754856642786,-250.0,0.00023899,2]
[378437356,1754856642798,-295.06679246,0.00023899,2]
[378437359,1754856642811,-500.0,0.00023899,2]
[378437361,1754856642822,-500.0,0.00023899,2]
[378437363,1754856642833,-500.0,0.00023899,2]
[378437364,1754856642842,-500.0,0.00023899,2]
[378437365,1754856642852,-500.0,0.00023899,2]
[378437366,1754856642862,-165.94526054,0.00023899,2]
[378437368,1754856642873,-2207.60600405,0.000239,2]
[378437369,1754856642885,-1903.55374466,0.000239,2]
[378437370,1754856642897,-20005.0,0.000239,2]
[378437372,1754856642909,-48490.59443038,0.000239,2]
[378437385,1754856642996,5000.0,0.00019956,2]
[378437752,1754856657199,2560.47993205,0.00019956,2]
[378437753,1754856657224,2439.52006795,0.00019956,2]
[378437754,1754856672838,5000.0,0.00019956,2]
[378437755,1754856688029,2560.47993205,0.00019956,2]
[378437756,1754856688053,2439.52006795,0.00019956,2]
[378437757,1754856703155,5000.0,0.00019956,2]
[378437758,1754856719289,2560.47993205,0.00019956,2]
[378437759,1754856719312,2439.52006795,0.00019956,2]
[378437760,1754856734565,5000.0,0.00019956,2]
[378437761,1754856749881,2560.47993205,0.00019956,2]
[378437762,1754856749904,2439.52006795,0.00019956,2]
[378437763,1754856766083,5000.0,0.00019956,2]
[378437764,1754856781391,2560.47993205,0.00019956,2]
[378437765,1754856781414,2439.52006795,0.00019956,2]
[378437766,1754856797890,5000.0,0.00019956,2]
[378437767,1754856814133,2560.47993205,0.00019956,2]
[378437768,1754856814156,2439.52006795,0.00019956,2]
[378437769,1754856815461,3472.41451375,0.000199,2]
[378437770,1754856829357,2912.81211859,0.00019956,2]
[378437775,1754857005835,1175.25329971,0.000199,2]
[378437776,1754857005860,2363.52613853,0.000199,2]
[378437778,1754857139647,882.89160877,0.00019543,2]
[378437779,1754857139967,441.44580438,0.00019755,2]
[378437780,1754857151139,175.90351,0.00013699,2]
[378437782,1754857211060,3543.07166326,0.000199,2]
[378437784,1754857413304,2593.16127506,0.000199,2]
[378437785,1754857413329,1134.86332982,0.000199,2]
[378437786,1754857442057,167.105668,0.00019863,2]
[378437787,1754857460679,8698.03100218,0.00019426,2]
[378437788,1754857460701,1301.96899782,0.00019426,2]
[378437793,1754857591847,327.47563498,0.000189,2]
[378437794,1754857609652,3604.49381657,0.000199,2]
[378437796,1754857643123,-160.0,0.0002,3]
[378437797,1754857643143,-254.31827841,0.0002,2]
[378437798,1754857643163,-300.0,0.00020145,2]
[378437799,1754857643183,-300.0,0.00020146,2]
[378437800,1754857643204,-1200.0,0.00020146,2]
[378437801,1754857643224,-300.0,0.00020146,2]
[378437802,1754857643244,-1200.0,0.00020146,2]
[378437803,1754857643264,-498.57586483,0.00020147,2]
[378437804,1754857643285,-460.0,0.00020147,2]
[378437805,1754857643304,-460.0,0.00020147,2]
[378437806,1754857643325,-463.31788289,0.00020147,2]
[378437807,1754857643348,-460.0,0.00020147,2]
[378437808,1754857643367,-280.02038694,0.00020147,2]
[378437809,1754857643388,-460.0,0.00020147,2]
[378437810,1754857643409,-204.92985707,0.00020147,2]
[378437811,1754857643430,-146.33676775,0.00020147,2]
[378437812,1754857646148,4766.06155063,0.00019262,2]
[378437813,1754857646170,10000.0,0.00019262,2]
[378437814,1754857646192,10000.0,0.00019262,2]
[378437815,1754857646214,133.93844937,0.00019262,2]
[378437818,1754857671574,9866.06155063,0.00018,2]
[378437819,1754857671595,10000.0,0.00018,2]
[378437820,1754857671617,10000.0,0.00018,2]
[378437821,1754857671638,10000.0,0.00018,2]
[378437822,1754857671660,5536.13400883,0.00018,2]
[378437825,1754857675610,4463.86599117,0.00018,2]
[378437826,1754857675633,84.19979187,0.00018,2]
[378437827,1754857693892,338.736686,0.00019357,2]
[378437830,1754857716038,9577.06352213,0.00017,2]
[378437831,1754857716060,10000.0,0.00017,2]
[378437832,1754857716081,10000.0,0.00017,2]
[378437833,1754857716101,6541.79340573,0.00017,2]
[378437834,1754857718721,3458.20659427,0.00018,2]
[378437835,1754857718744,10000.0,0.00018,2]
[378437836,1754857718767,10000.0,0.00018,2]
[378437837,1754857718788,373.27376653,0.00018,2]
[378437839,1754857720124,372.16942045,0.000149,2]
[378437840,1754857720348,1000.0,0.0001,2]
[378437842,1754857724547,211.2803933,0.00016,2]
[378437852,1754857795469,3733.08556896,0.000199,2]
[378437904,1754857832760,-1200.0,0.00019999,2]
[378437905,1754857832770,-8676.7147901,0.0002,20]
[378437906,1754857832779,-160.0,0.0002,3]
[378437907,1754857832790,-300.0,0.00020146,2]
[378437908,1754857832799,-460.0,0.00020146,2]
[378437910,1754857832809,-460.0,0.00020146,2]
[378437912,1754857832819,-460.0,0.00020147,2]
[378437914,1754857832828,-460.0,0.00020147,2]
[378437916,1754857832838,-460.0,0.00020147,2]
[378437918,1754857832847,-460.0,0.00020147,2]
[378437921,1754857832856,-460.0,0.00020147,2]
[378437923,1754857832865,-460.0,0.00020147,2]
[378437925,1754857832874,-460.0,0.00020147,2]
[378437927,1754857832884,-460.0,0.00020147,2]
[378437929,1754857832893,-460.0,0.00020147,2]
[378437931,1754857832902,-460.0,0.00020147,2]
[378437934,1754857832912,-460.0,0.00020147,2]
[378437937,1754857832922,-460.0,0.00020147,2]
[378437939,1754857832931,-460.0,0.00020147,2]
[378437941,1754857832940,-460.0,0.00020147,2]
[378437944,1754857832949,-460.0,0.00020147,2]
[378437947,1754857832959,-460.0,0.00020147,2]
[378437950,1754857832968,-608.06775874,0.00020147,2]
[378437953,1754857832978,-460.0,0.00020147,2]
[378437956,1754857832987,-460.0,0.00020147,2]
[378437959,1754857832996,-175.90351,0.00020187,2]
[378437962,1754857833007,-460.0,0.00020362,2]
[378437965,1754857833017,-460.0,0.00020362,2]
[378437968,1754857833026,-460.0,0.00020362,2]
[378437971,1754857833035,-460.0,0.00020362,2]
[378437973,1754857833045,-460.0,0.00020362,2]
[378437976,1754857833055,-460.0,0.00020362,2]
[378437980,1754857833066,-460.0,0.00020363,2]
[378437982,1754857833076,-460.0,0.00020363,2]
[378437983,1754857833086,-460.0,0.00020363,2]
[378437985,1754857833095,-460.0,0.00020363,2]
[378437987,1754857833104,-559.54,0.00020363,2]
[378437989,1754857833113,-460.0,0.00020363,2]
[378437991,1754857833123,-460.0,0.00020363,2]
[378437993,1754857833132,-460.0,0.00020363,2]
[378437995,1754857833142,-328.87287238,0.00020363,2]
[378437997,1754857833151,-76.57399942,0.00020363,2]
[378437999,1754857833163,-383.42600058,0.00020363,2]
[378438001,1754857833172,-460.0,0.00020363,2]
[378438003,1754857833182,-460.0,0.00020363,2]
[378438005,1754857833191,-460.0,0.00020363,2]
[378438007,1754857833200,-460.0,0.00020363,2]
[378438009,1754857833209,-60.08949167,0.00020363,2]
[378438011,1754857833222,-399.91050833,0.00020363,2]
[378438013,1754857833231,-460.0,0.00020363,2]
[378438015,1754857833241,-460.0,0.00020363,2]
[378438017,1754857833250,-460.0,0.00020363,2]
[378438019,1754857833260,-460.0,0.00020363,2]
[378438021,1754857833270,-460.0,0.00020363,2]
[378438023,1754857833280,-50.08949167,0.00020363,2]
[378438025,1754857833291,-413.48317138,0.00020363,2]
[378438026,1754857833301,-460.0,0.00020363,2]
[378438027,1754857833310,-460.0,0.00020363,2]
[378438028,1754857833320,-460.0,0.00020364,2]
[378438029,1754857833329,-460.0,0.00020364,2]
[378438030,1754857833339,-460.0,0.00020364,2]
[378438031,1754857833348,-460.0,0.00020364,2]
[378438032,1754857833358,-483.97,0.00020364,2]
[378438033,1754857833367,-510.73963508,0.00020364,2]
[378438034,1754857833376,-534.920261,0.00020364,2]
[378438035,1754857833385,-460.0,0.00020364,2]
[378438036,1754857833395,-460.0,0.00020364,2]
[378438037,1754857833404,-402.29277943,0.00020364,2]
[378438038,1754857833413,-460.0,0.00020364,2]
[378438039,1754857833423,-460.0,0.00020364,2]
[378438040,1754857833433,-460.0,0.00020364,2]
[378438041,1754857833442,-460.0,0.00020364,2]
[378438042,1754857833451,-460.0,0.00020364,2]
[378438043,1754857833461,-460.0,0.00020364,2]
[378438044,1754857833470,-460.0,0.00020364,2]
[378438045,1754857833480,-460.0,0.00020364,2]
[378438046,1754857833489,-20.2168651,0.00020364,2]
[378438047,1754857833515,-453.11200613,0.00020364,2]
[378438048,1754857833524,-460.0,0.00020364,2]
[378438049,1754857833534,-315.98150414,0.00020364,2]
[378438050,1754857833543,-460.0,0.00020364,2]
[378438051,1754857833553,-516.73,0.00020365,2]
[378438052,1754857833562,-282.21,0.00020365,2]
[378438053,1754857833571,-460.0,0.00020365,2]
[378438054,1754857833580,-460.0,0.00020365,2]
[378438055,1754857833590,-151.0,0.00020365,2]
[378438056,1754857833599,-198.0,0.00020365,2]
[378438057,1754857833607,-151.0,0.00020365,2]
[378438058,1754857833616,-460.0,0.00020365,2]
[378438059,1754857833625,-151.0,0.00020365,2]
[378438060,1754857833635,-151.0,0.00020365,2]
[378438061,1754857833645,-151.0,0.00020365,2]
[378438062,1754857833654,-460.0,0.00020365,2]
[378438063,1754857833663,-460.0,0.00020365,2]
[378438064,1754857833673,-460.0,0.00020365,2]
[378438065,1754857833683,-102.25933737,0.00020365,2]
[378438066,1754857833694,-357.74066263,0.00020365,2]
[378438067,1754857833703,-460.0,0.00020365,2]
[378438068,1754857833712,-199.50459705,0.00020365,2]
[378438110,1754857838884,-460.0,0.00020362,2]
[378438111,1754857838893,-460.0,0.00020363,2]
[378438112,1754857838903,-260.49540295,0.00020365,2]
[378438113,1754857838912,-460.0,0.00020365,2]
[378438114,1754857838921,-460.0,0.00020365,2]
[378438115,1754857838931,-460.78,0.00020365,2]
[378438116,1754857838940,-460.0,0.00020365,2]
[378438117,1754857838949,-460.0,0.00020365,2]
[378438118,1754857838958,-151.0,0.00020365,2]
[378438119,1754857838968,-460.0,0.00020365,2]
[378438120,1754857838977,-460.0,0.00020365,2]
[378438121,1754857838987,-151.0,0.00020365,2]
[378438122,1754857838996,-151.0,0.00020365,2]
[378438123,1754857839006,-151.0,0.00020365,2]
[378438124,1754857839015,-460.0,0.00020365,2]
[378438126,1754857839025,-151.0,0.00020365,2]
[378438127,1754857839034,-461.86521781,0.00020365,2]
[378438128,1754857839055,-460.0,0.00020365,2]
[378438129,1754857839064,-151.0,0.00020365,2]
[378438130,1754857839074,-151.0,0.00020365,2]
[378438131,1754857839084,-271.68,0.00020365,2]
[378438133,1754857839094,-460.0,0.00020365,2]
[378438135,1754857839104,-460.0,0.00020365,2]
[378438137,1754857839114,-460.0,0.00020365,2]
[378438139,1754857839124,-460.0,0.00020365,2]
[378438141,1754857839133,-151.0,0.00020365,2]
[378438143,1754857839143,-151.0,0.00020365,2]
[378438145,1754857839152,-460.0,0.00020366,2]
[378438147,1754857839161,-151.0,0.00020366,2]
[378438149,1754857839171,-151.0,0.00020366,2]
[378438151,1754857839180,-151.0,0.00020366,2]
[378438153,1754857839190,-460.0,0.00020366,2]
[378438155,1754857839199,-460.0,0.00020366,2]
[378438157,1754857839209,-460.0,0.00020421,2]
[378438159,1754857839218,-460.0,0.00020421,2]
[378438161,1754857839227,-460.0,0.00020421,2]
[378438163,1754857839237,-460.0,0.00020421,2]
[378438165,1754857839247,-460.0,0.00020421,2]
[378438167,1754857839256,-460.0,0.00020421,2]
[378438169,1754857839266,-460.0,0.00020421,2]
[378438171,1754857839276,-460.0,0.00020636,2]
[378438173,1754857839286,-460.0,0.00020636,2]
[378438175,1754857839295,-460.0,0.00020636,2]
[378438177,1754857839305,-460.0,0.00020637,2]
[378438179,1754857839315,-559.54,0.00020637,2]
[378438182,1754857839324,-460.0,0.00020637,2]
[378438184,1754857839334,-460.0,0.00020637,2]
[378438186,1754857839343,-460.0,0.00020637,2]
[378438188,1754857839353,-460.0,0.00020637,2]
[378438190,1754857839362,-460.0,0.00020637,2]
[378438192,1754857839372,-460.0,0.00020637,2]
[378438194,1754857839381,-460.0,0.00020637,2]
[378438195,1754857839392,-496.13,0.00020637,2]
[378438198,1754857839402,-460.0,0.00020638,2]
[378438200,1754857839412,-267.56231785,0.00020638,2]
[378438202,1754857839422,-460.0,0.00020638,2]
[378438204,1754857839432,-460.0,0.00020638,2]
[378438206,1754857839442,-460.0,0.00020638,2]
[378438208,1754857839451,-500.04732624,0.00020638,2]
[378438210,1754857839460,-198.0,0.00020639,2]
[378438212,1754857839470,-151.0,0.00020639,2]
[378438214,1754857839479,-460.0,0.00020639,2]
[378438216,1754857839488,-460.0,0.00020639,2]
[378438218,1754857839498,-460.0,0.00020639,2]
[378438220,1754857839507,-460.0,0.00020639,2]
[378438222,1754857839516,-460.0,0.00020639,2]
[378438224,1754857839526,-460.0,0.00020639,2]
[378438226,1754857839535,-460.0,0.00020639,2]
[378438228,1754857839544,-460.0,0.00020639,2]
[378438230,1754857839553,-584.23232668,0.00020639,2]
[378438232,1754857839563,-460.0,0.00020639,2]
[378438234,1754857839572,-460.0,0.00020639,2]
[378438236,1754857839581,-461.39044425,0.00020639,2]
[378438238,1754857839591,-460.0,0.00020639,2]
[378438240,1754857839600,-460.0,0.00020639,2]
[378438242,1754857839609,-460.0,0.00020639,2]
[378438244,1754857839618,-460.0,0.00020639,2]
[378438246,1754857839629,-460.0,0.00020639,2]
[378438248,1754857839638,-460.0,0.00020639,2]
[378438250,1754857839647,-460.0,0.00020639,2]
[378438252,1754857839660,-460.0,0.00020639,2]
[378438271,1754857839831,-460.0,0.00020639,2]
[378438273,1754857839842,-460.0,0.00020639,2]
[378438275,1754857839851,-468.21200807,0.00020639,2]
[378438277,1754857839861,-558.42,0.00020639,2]
[378438279,1754857839869,-361.88763169,0.00020639,2]
[378438281,1754857839878,-460.0,0.00020639,2]
[378438283,1754857839887,-460.0,0.00020639,2]
[378438285,1754857839896,-460.0,0.00020639,2]
[378438287,1754857839905,-457.60635988,0.00020639,2]
[378438289,1754857839915,-454.65855995,0.00020639,2]
[378438291,1754857839924,-460.0,0.00020639,2]
[378438293,1754857839933,-460.0,0.00020639,2]
[378438295,1754857839942,-460.0,0.00020639,2]
[378438297,1754857839951,-313.66323225,0.00020639,2]
[378438299,1754857839960,-460.0,0.00020639,2]
[378438301,1754857839969,-460.0,0.00020639,2]
[378438303,1754857839979,-460.0,0.00020639,2]
[378438305,1754857839988,-460.0,0.00020639,2]
[378438307,1754857839997,-460.0,0.00020639,2]
[378438309,1754857840006,-460.0,0.00020639,2]
[378438311,1754857840015,-460.0,0.00020639,2]
[378438313,1754857840024,-460.0,0.00020639,2]
[378438315,1754857840034,-211.75552178,0.00020639,2]
[378438317,1754857840043,-460.0,0.00020639,2]
[378438320,1754857840052,-460.0,0.00020639,2]
[378438322,1754857840063,-460.0,0.00020639,2]
[378438325,1754857840073,-460.0,0.00020639,2]
[378438328,1754857840082,-372.92925353,0.00020639,2]
[378438330,1754857840091,-460.0,0.00020639,2]
[378438332,1754857840100,-460.0,0.00020639,2]
[378438333,1754857840110,-460.0,0.00020639,2]
[378438336,1754857840119,-604.52814086,0.0002064,2]
[378438339,1754857840129,-460.0,0.0002064,2]
[378438341,1754857840138,-460.0,0.00020695,2]
[378438344,1754857840148,-460.0,0.00020695,2]
[378438347,1754857840158,-460.0,0.00020695,2]
[378438348,1754857840168,-460.0,0.00020695,2]
[378438350,1754857840177,-460.0,0.00020695,2]
[378438353,1754857840189,-460.0,0.00020695,2]
[378438355,1754857840198,-460.0,0.00020695,2]
[378438357,1754857840207,-460.0,0.0002091,2]
[378438359,1754857840216,-460.0,0.0002091,2]
[378438361,1754857840226,-460.0,0.00020911,2]
[378438364,1754857840236,-559.54,0.00020911,2]
[378438366,1754857840245,-460.0,0.00020911,2]
[378438368,1754857840255,-460.0,0.00020911,2]
[378438370,1754857840264,-460.0,0.00020911,2]
[378438372,1754857840273,-460.0,0.00020911,2]
[378438374,1754857840283,-460.0,0.00020912,2]
[378438376,1754857840292,-460.0,0.00020912,2]
[378438378,1754857840300,-460.0,0.00020912,2]
[378438380,1754857840310,-198.0,0.00020913,2]
[378438382,1754857840319,-460.0,0.00020913,2]
[378438384,1754857840330,-447.92407947,0.00020913,2]
[378438386,1754857840339,-460.0,0.00020913,2]
[378438388,1754857840349,-460.0,0.00020913,2]
[378438390,1754857840357,-460.0,0.00020913,2]
[378438391,1754857840367,-460.0,0.00020913,2]
[378438394,1754857840376,-460.0,0.00020913,2]
[378438395,1754857840385,-460.0,0.00020913,2]
[378438398,1754857840395,-500.0,0.00020954,2]
[378438400,1754857840404,-250.34670628,0.00020954,2]
[378438401,1754857840413,-323.40389411,0.00020954,2]
[378438404,1754857840423,-331.0374753,0.00020954,2]
[378438406,1754857840432,-500.0,0.00020954,2]
[378438407,1754857840441,-500.0,0.00020958,2]
[378438410,1754857840451,-460.0,0.00020969,2]
[378438411,1754857840460,-169.31,0.00020969,2]
[378438413,1754857840469,-460.0,0.00020969,2]
[378438416,1754857840479,-460.0,0.00020969,2]
[378438417,1754857840488,-460.0,0.00020969,2]
[378438420,1754857840497,-460.0,0.00020969,2]
[378438422,1754857840507,-460.0,0.00020969,2]
[378438424,1754857840516,-5000.0,0.00021009,2]
[378438426,1754857840526,-186.33809383,0.00021039,2]
[378438428,1754857840535,-200.0,0.00021153,15]
[378438430,1754857840544,-300.0,0.00021153,15]
[378438432,1754857840553,-460.0,0.00021184,2]
[378438434,1754857840562,-460.0,0.00021184,2]
[378438436,1754857840571,-460.0,0.00021185,2]
[378438438,1754857840580,-559.54,0.00021185,2]
[378438440,1754857840590,-460.0,0.00021185,2]
[378438442,1754857840599,-460.0,0.00021185,2]
[378438444,1754857840608,-460.0,0.00021185,2]
[378438446,1754857840617,-460.0,0.00021185,2]
[378438448,1754857840626,-529.13858728,0.00021187,2]
[378438450,1754857840636,-460.0,0.00021187,2]
[378438451,1754857840645,-460.0,0.00021187,2]
[378438453,1754857840655,-460.0,0.00021187,2]
[378438456,1754857840664,-460.0,0.00021187,2]
[378438458,1754857840673,-460.0,0.00021187,2]
[378438460,1754857840683,-460.0,0.00021243,2]
[378438462,1754857840691,-460.0,0.00021243,2]
[378438464,1754857840700,-190.31,0.00021243,2]
[378438466,1754857840710,-460.0,0.00021243,2]
[378438467,1754857840719,-465.82,0.00021243,2]
[378438470,1754857840729,-460.0,0.00021243,2]
[378438472,1754857840739,-1298.59,0.00021328,2]
[378438474,1754857840751,-178.569116,0.00021329,10]
[378438476,1754857840761,-12668.57659669,0.00021346,2]
[378438478,1754857840770,-312.16666667,0.00021353,2]
[378438480,1754857840779,-160.0,0.00021353,2]
[378438482,1754857840789,-160.0,0.00021353,2]
[378438484,1754857840799,-231.96268195,0.00021353,2]
[378438486,1754857840808,-216.64838636,0.00021353,2]
[378438488,1754857840817,-215.44987349,0.00021353,2]
[378438490,1754857840827,-461.62346162,0.00021353,2]
[378438492,1754857840837,-160.0,0.00021353,2]
[378438494,1754857840846,-160.0,0.00021353,2]
[378438496,1754857840856,-843.0869304,0.00021353,2]
[378438498,1754857840865,-527.86640923,0.00021353,2]
[378438500,1754857840874,-160.0,0.00021353,2]
[378438502,1754857840883,-237.87,0.00021451,10]
[378438504,1754857840892,-460.0,0.00021458,2]
[378438506,1754857840901,-460.0,0.00021458,2]
[378438508,1754857840911,-460.0,0.00021459,2]
[378438510,1754857840921,-559.54,0.00021459,2]
[378438512,1754857840930,-460.0,0.00021459,2]
[378438514,1754857840940,-460.0,0.00021459,2]
[378438516,1754857840950,-460.0,0.00021459,2]
[378438518,1754857840959,-192.66,0.00021461,2]
[378438520,1754857840968,-460.0,0.00021461,2]
[378438522,1754857840977,-460.0,0.00021461,2]
[378438524,1754857840986,-460.0,0.00021461,2]
[378438526,1754857840996,-187.27,0.00021516,2]
[378438528,1754857841005,-460.0,0.00021516,2]
[378438531,1754857841016,-460.0,0.00021516,2]
[378438533,1754857841030,-294.14,0.00021516,2]
[378438536,1754857841043,-151.0,0.00021589,2]
[378438538,1754857841057,-256.01205118,0.00021589,2]
[378438540,1754857841068,-151.0,0.00021589,2]
[378438543,1754857841079,-151.0,0.00021589,2]
[378438545,1754857841092,-151.0,0.00021589,2]
[378438547,1754857841103,-151.0,0.00021589,2]
[378438550,1754857841116,-151.0,0.00021589,2]
[378438552,1754857841128,-151.0,0.00021589,2]
[378438554,1754857841138,-151.0,0.00021589,2]